Cogmind - Beta 14 @@@ ROGUE MODE // 2024.08.31 @ 17:21:28 Player: gigi283 Result: Destroyed by as-83410 with Assembled Rifle Performance ------------- Evolutions (0) 0 Regions Visited (3) 600 Robots Destroyed (6) 30 Value Destroyed (88) 88 Prototype IDs (23) 460 Alien Tech Used (0) 0 Bonus (300) 300 TOTAL SCORE: 1478 Bonus ------- Aligned with FarCom 300 Cogmind --------- Core Integrity 0/250 Matter 280/300 Energy 125/125 System Corruption 5% Temperature Cool (0) Movement Hovering (220) Ox2 Location -10/Exiles Parts ------- > --- POWER (1) -------- Light Ion Engine > --- PROPULSION (2) --- Combat Airjet > --- UTILITY (2) ------ Small Storage Unit Improved Terrain Scanner > --- WEAPON (2) ------- Firepult > --- INVENTORY (8) ---- High-capacity Matter Pod (200) ECM Suite Cloak of Protection Mini Grenade Launcher Blade Trap Blade Trap Peak State ------------ > --- POWER ------------ Light Ion Engine > --- PROPULSION ------- Combat Airjet > --- UTILITY ---------- Small Storage Unit Improved Terrain Scanner > --- WEAPON ----------- Firepult > --- INVENTORY -------- High-capacity Matter Pod ECM Suite Cloak of Protection Mini Grenade Launcher Blade Trap Blade Trap [Rating: 31] Favorites ----------- Power Light Ion Engine Engine Light Ion Engine Propulsion Light Treads Treads Light Treads Wheel Wheel Hover Unit Combat Airjet Utility Improved Terrain Scanner Device Improved Terrain Scanner Storage High-capacity Storage Unit Protection Light Armor Plating Weapon Assault Rifle Energy Cannon Firepult Ballistic Gun Assault Rifle Launcher Mini Grenade Launcher Special Weapon Mining Laser Build | -11 -10 -10 -10 ------- Run | Yrd Mat Min Exi Slots Evolved . | . . . . Power . | . . . . Propulsion . | . . . . Utility . | . . . . Weapon . | . . . . Parts Attached 24 | 8 3 11 2 Power 5 | 1 1 3 . Engine 5 | 1 1 3 . Core . | . . . . Reactor . | . . . . Propulsion 6 | 4 . 2 . Treads 3 | 2 . 1 . Leg . | . . . . Wheel 2 | 2 . . . Hover 1 | . . 1 . Flight . | . . . . Utility 6 | 1 2 3 . Device 2 | 1 . 1 . Storage 3 | . 1 2 . Processor . | . . . . Hackware . | . . . . Protection 1 | . 1 . . Artifact . | . . . . Weapon 7 | 2 . 3 2 Energy Gun . | . . . . Energy Cannon 1 | . . . 1 Ballistic Gun 4 | 2 . 2 . Ballistic Cannon . | . . . . Launcher 1 | . . 1 . Special Weapon 1 | . . . 1 Impact Weapon . | . . . . Slashing Weapon . | . . . . Piercing Weapon . | . . . . Special Melee Weapon . | . . . . Unidentified Prototypes . | . . . . Parts Lost 7 | . 1 5 1 Power 2 | . 1 1 . Propulsion 1 | . . 1 . Utility 1 | . . 1 . Weapon 3 | . . 2 1 Highest Loss Streak 4 | . 1 4 1 To Critical Strikes . | . . . . Average Slot Usage (%) 82 | . 90 76 84 Engine 12 | . 9 13 14 Treads 12 | . 28 10 . Hover 6 | . . 7 14 Device 12 | . 14 11 14 Storage 8 | . 7 6 14 Ballistic Gun 20 | . 28 18 13 Launcher 3 | . . 7 2 Special Weapon 2 | . . . 10 Peak Build Rating 31 | 8 9 14 31 Average Rating 10 | 4 8 10 14 On Entrance 7 | . 8 9 13 Naked Turns . | . . . . Heaviest Build 49 | 9 49 47 31 Greatest Support 40 | 40 40 40 12 Greatest Overweight (x) 2 | . 1 2 2 Average Overweight (x) . | . . . . Largest Inventory Capacity 20 | 5 20 20 8 Average Capacity 10 | 5 13 10 8 Most Carried 8 | 5 4 6 8 Average Carried 4 | 1 2 4 6 Final Capacity 20 | 5 20 8 8 Final Carried 6 | 1 3 5 6 Class Distribution -------------------- 63% | Mutant 36% | Scavenger-Mutant Dominant Class ---------------- Mutant | -10/Materials Mutant | -10/Mines Scavenger-Mutant | -10/Exiles Resources | -11 -10 -10 -10 ----------- Run | Yrd Mat Min Exi Matter Collected 862 | 312 34 509 7 Remotely . | . . . . Salvage Created 306 | 112 86 108 . Parts 9 | 6 3 . . Haulers Intercepted . | . . . . Recyclers Shooed 3 | 1 1 1 . Parts Field Recycled . | . . . . Retrieved Matter . | . . . . Parts Self-Destructed . | . . . . Prevented . | . . . . Kills | -11 -10 -10 -10 ------- Run | Yrd Mat Min Exi Combat Hostiles Destroyed 6 | . 2 4 . Guns 5 | . 2 3 . AOE 1 | . . 1 . Classes Destroyed 5 | 2 1 2 . Worker 1 | . . 1 . Tunneler 1 | 1 . . . Recycler 2 | 1 . 1 . Grunt 2 | . 2 . . Assembled 4 | . . 4 . Best Kill Streak 2 | 2 2 2 . Combat Bots Only 2 | . 2 1 . Max Kills in Single Turn 1 | 1 1 1 . Gunslinging . | . . . . Exploded 1 | . . 1 . Melee . | . . . . Uniques/NPCs Destroyed . | . . . . Combat | -11 -10 -10 -10 -------- Run | Yrd Mat Min Exi Hostile Shots Fired 48 | . 18 19 11 Missed 15 | . 5 5 5 Damage Taken 991 | . 297 498 196 Core 253 | . 18 159 76 Absorbed by Shields . | . . . . Core Remaining (%) 100 | 100 . . . Volleys Fired 42 | 8 13 20 1 Largest 2 | 2 2 2 1 Hottest 250 | 40 40 50 250 Shots Fired 75 | 16 26 31 2 Gun 67 | 16 26 24 1 Cannon 1 | . . . 1 Launcher 7 | . . 7 . Special . | . . . . Kinetic 67 | 16 26 24 1 Thermal 1 | . . . 1 Explosive 7 | . . 7 . Electromagnetic . | . . . . Robot Hit Streak 9 | 9 8 5 3 Robot Miss Streak 4 | 2 4 3 1 Penetration Max . | . . . . Secondary Targets . | . . . . Shots Hit Robots 48 | 12 17 18 1 Core Hits 23 | 4 7 11 1 Critical Kills 1 | . . 1 . Critical Parts Destroyed . | . . . . Critical Strikes 1 | . . 1 . Destroy 1 | . . 1 . Melee Attacks . | . . . . Impact . | . . . . Slashing . | . . . . Piercing . | . . . . Sneak Attacks . | . . . . Combat Hostiles . | . . . . Follow-up Attacks . | . . . . Damage Inflicted 781 | 127 161 446 47 Guns 437 | 127 161 149 . Cannons . | . . . . Explosions 344 | . . 297 47 Melee . | . . . . Ramming . | . . . . Kinetic 437 | 127 161 149 . Thermal 47 | . . . 47 Explosive 297 | . . 297 . Electromagnetic . | . . . . Impact . | . . . . Slashing . | . . . . Piercing . | . . . . Highest Corruption 5 | . 4 5 5 Average Corruption 4 | . 3 4 5 Corruption Purged . | . . . . Corruption Blocked . | . . . . Effects 19 | . 2 12 5 Message Errors 4 | . . 2 2 Matter Fused 7 | . 2 4 1 Heat Flow Errors 3 | . . 3 . Energy Discharges 2 | . . 1 1 Parts Rejected 1 | . . 1 . Misfires 2 | . . 1 1 Overload Shots . | . . . . Overflow Damage 12 | . . 12 . Projectiles . | . . . . Explosions 12 | . . 12 . Melee . | . . . . Knockbacks . | . . . . Impact . | . . . . Kinetic . | . . . . Secondary . | . . . . Self-Inflicted Damage 48 | . . 48 . Shots 2 | . . 2 . Rammed . | . . . . Targets Rammed . | . . . . Kicked . | . . . . Crushed . | . . . . Highest Temperature 256 | . 9 256 210 Average Temperature 78 | . 4 86 114 Received Heat Transfer 104 | . 84 20 . Siege Activations . | . . . . Robots Corrupted . | . . . . Combat Hostiles . | . . . . Parts Fried . | . . . . Impact Corruptions . | . . . . Robots Melted . | . . . . Combat Hostiles . | . . . . Parts Melted 1 | . . . 1 Heat Transferred 320 | . . . 320 Parts Sabotaged . | . . . . Parts Stolen . | . . . . Parts Stripped . | . . . . Power Chain Reactions . | . . . . Alert | -11 -10 -10 -10 ------- Run | Yrd Mat Min Exi Peak Influence 88 | 10 88 63 . Initial 34 | . 6 34 . Average 27 | 4 32 29 . Maximum Alert Level . | . . . . Low Security (%) 100 | 100 100 100 . Level 1 . | . . . . Level 2 . | . . . . Level 3 . | . . . . Level 4 . | . . . . Level 5 . | . . . . High Security . | . . . . Max Security . | . . . . Squads Dispatched 3 | . 3 . . Investigation 1 | . 1 . . Extermination . | . . . . Reinforcement 2 | . 2 . . Assault . | . . . . Garrison . | . . . . Intercept . | . . . . Searches Triggered . | . . . . Construction Impeded . | . . . . Haulers Reinforced . | . . . . Active Scanning Responses . | . . . . Cargo Convoy Interrupts . | . . . . Stealth | -11 -10 -10 -10 --------- Run | Yrd Mat Min Exi Distress Signals . | . . . . Communications Jammed . | . . . . Distress Signals . | . . . . Times Spotted 22 | . 4 9 9 Peak Tracking Total 13 | . 2 3 13 Tactical Retreats 2 | . 1 . 1 Traps | -11 -10 -10 -10 ------- Run | Yrd Mat Min Exi Traps Triggered 3 | . 3 . . Indirectly . | . . . . Trap Hack Attempts . | . . . . Triggered . | . . . . Disarmed . | . . . . Reprogrammed . | . . . . Reused . | . . . . Traps Extracted . | . . . . Installed . | . . . . Triggered . | . . . . Most Traps Carried 2 | . . 2 2 Machines | -11 -10 -10 -10 ---------- Run | Yrd Mat Min Exi Machines Disabled 2 | . . . 2 Max in Single Turn 2 | . . . 2 Machines Repaired . | . . . . Machines Dismantled . | . . . . Machines Sabotaged . | . . . . Overloaded Fab Kills . | . . . . Hacking | -11 -10 -10 -10 --------- Run | Yrd Mat Min Exi Machines Accessed 4 | . 1 . 3 Terminals 1 | . 1 . . Fabricators . | . . . . Repair Stations . | . . . . Recycling Units . | . . . . Scanalyzers . | . . . . Garrison Access . | . . . . Total Hacks 16 | . 5 . 11 Successful 13 | . 2 . 11 Failed 3 | . 3 . . Catastrophic 2 | . 2 . . Database Lockouts . | . . . . Manual 1 | . . . 1 Terminals 5 | . 5 . . Fabricators . | . . . . Repair Stations . | . . . . Recycling Units . | . . . . Scanalyzers . | . . . . Garrison Access . | . . . . Terminal Hacks 13 | . 2 . 11 Record 10 | . . . 10 Recall Investigation 1 | . 1 . . Zone Layout 1 | . 1 . . Derelict Proto ID Bank 1 | . . . 1 Fabricator Hacks . | . . . . Repair Station Hacks . | . . . . Recycling Unit Hacks . | . . . . Scanalyzer . | . . . . Garrison Access Hacks . | . . . . Unauthorized Hacks . | . . . . Terminals . | . . . . Fabricators . | . . . . Repair Stations . | . . . . Recycling Units . | . . . . Scanalyzers . | . . . . Garrison Access . | . . . . Data Cores Recovered . | . . . . Used . | . . . . Hacking Detections 1 | . 1 . . Full Trace Events 1 | . 1 . . Feedback Events . | . . . . Feedback Blocked . | . . . . Robot Schematics Acquired . | . . . . Robots Built . | . . . . Authchips . | . . . . Time . | . . . . Total Robot Build Rating . | . . . . Part Schematics Acquired . | . . . . Parts Built . | . . . . Authchips . | . . . . Time . | . . . . Total Part Build Rating . | . . . . Parts Repaired . | . . . . Time . | . . . . Parts Recycled . | . . . . Recycled Matter . | . . . . Retrieved Matter . | . . . . Retrieved Components . | . . . . Parts Scanalyzed . | . . . . Part Schematics Acquired . | . . . . Parts Damaged . | . . . . Bothacking | -11 -10 -10 -10 ------------ Run | Yrd Mat Min Exi Used RIF Installer . | . . . . Robots Hacked . | . . . . Non-combat . | . . . . Combat . | . . . . Robot Hacks Applied . | . . . . Relay Couplers Released . | . . . . Fabnet Peak Effective % . | . . . . Robots Rewired . | . . . . Allies Hacked . | . . . . Hacks Repelled . | . . . . Allies | -11 -10 -10 -10 -------- Run | Yrd Mat Min Exi Total Allies . | . . . . Largest Group . | . . . . Highest-Rated Group . | . . . . Highest-Rated Ally . | . . . . Total Orders . | . . . . Ally Attacks . | . . . . Total Damage . | . . . . Kills . | . . . . Allies Corrupted . | . . . . Allies Melted . | . . . . Intel | -11 -10 -10 -10 ------- Run | Yrd Mat Min Exi Robot Analysis Total . | . . . . Derelict Logs Recovered 2 | . . 2 . Drone Launches . | . . . . Drone Recoveries . | . . . . Exploration | -11 -10 -10 -10 ------------- Run | Yrd Mat Min Exi Turns Passed 1254 | 128 337 474 315 Spaces Moved 944 | 63 152 355 374 Core 57 | 14 . 43 . Treads 266 | 49 152 65 . Legs . | . . . . Wheels . | . . . . Hover 621 | . . 247 374 Flight . | . . . . Fastest Speed 50 | 50 160 50 80 Average Speed 113 | 135 193 109 82 Slowest Speed 240 | 160 240 240 220 Overloaded Moves . | . . . . Propulsion Burnouts . | . . . . Robots Hopped . | . . . . Cave-ins Triggered . | . . . . Exploration Rate (%) 38 | 6 28 41 80 Regions Visited 3 Branch Regions 2 Pre-discovered Areas . | . . . . Known Exits Taken . | . . . . Unknown Exits Taken 3 | 1 1 1 . Scrap Searched 1 | . . 1 . Spaces Dug . | . . . . Terrain Destroyed 71 | . . 71 . Melee . | . . . . Projectile . | . . . . AOE 71 | . . 71 . Terrain Rammed . | . . . . Walls Destroyed . | . . . . Machines Disabled . | . . . . Actions | -11 -10 -10 -10 --------- Run | Yrd Mat Min Exi Total 1056 | 93 172 410 381 Wait 10 | . 1 9 . Move 941 | 62 151 354 374 Hop . | . . . . Pick Up 27 | 11 4 10 2 Fast Attach 3 | . . 3 . Attach 18 | 8 2 6 2 Detach 2 | . . 1 1 Swap 3 | . 1 2 . Drop 10 | 4 . 5 1 Fire 42 | 8 13 20 1 Melee . | . . . . Ram . | . . . . Kick . | . . . . Crush . | . . . . Escape Stasis . | . . . . Rewire . | . . . . Trap . | . . . . Miscellaneous . | . . . . Route ------- -11/Scrapyard -10/Materials -10/Mines (discovered 3 exits: [*Mat] / *Exi / Sub) -10/Exiles (discovered 1 exit: [*Min]) History --------- Turn | Location | Event 46 | -11/Scrapyard | Discovered new exit (range 16) 129 | -11/Scrapyard | Entered Materials 316 | -10/Materials | Build established: Mutant 401 | -10/Materials | Discovered new exit (range 13) 466 | -10/Materials | Entered Mines 490 | -10/Mines | Discovered new exit (range 13) 627 | -10/Mines | Assembled infested the area 649 | -10/Mines | Core integrity fell below 50% 661 | -10/Mines | Met 8R-AWN 698 | -10/Mines | Lost 4 parts (1p1n2w) 728 | -10/Mines | Identified exit to Subcaves 880 | -10/Mines | Found a hidden stash of uninstalled traps 936 | -10/Mines | Discovered new exit (range 5) 940 | -10/Mines | Entered Exiles 952 | -10/Exiles | Discovered new exit (range 15) 963 | -10/Exiles | Welcomed by 8R-AWN 976 | -10/Exiles | Met EX-HEX 1004 | -10/Exiles | Met EX-BIN 1013 | -10/Exiles | Aligned with FarCom system 1014 | -10/Exiles | Given EX-Vault access code 1041 | -10/Exiles | Opened EX-Vault 1046 | -10/Exiles | Found Cloak of Protection 1050 | -10/Exiles | Found Firepult 1067 | -10/Exiles | Warned to stay clear of 0b10 Research branches 1094 | -10/Exiles | Met EX-DEC 1143 | -10/Exiles | Visited The Gauntlet 1188 | -10/Exiles | Build established: Scavenger-Mutant 1234 | -10/Exiles | Attacked by the Exiles 1237 | -10/Exiles | Core integrity fell below 20% 1255 | -10/Exiles | Destroyed by as-83410 with Assembled Rifle Last Messages --------------- 01234_ System corrupted: FCS attempts to trigger Assault Rifle. 01234_ System corrupted: Assault Rifle misfires. 01234_ EXILES: Hostile robot within lab perimeter. Defensive protocols time, folks! 01236_ EX-DEC: "Let's see what this bad boy can do..." 01236_ EX-DEC deploys DAS Turret. 01236_ Knocked back. 01237_ Acquired 7 matter. 01237_ Mining Laser destroyed. 01237_ Knocked back. 01238_ Dropped Assault Rifle. 01240_ Machine disabled. 01240_ Melted Prototype Ballistic Cannon. 01241_ DAS Turret heat spikes uncontrollably. 01246_ EX-BIN: "I just want to science!" 01248_ DAS Turret heat damages core (-20). 01253_ DAS Turret heat damages core (-33). Map ----- +----------------------------------------------------+ | ?????????????#?????????????????#????#" | | ????????????????????????????????????#" | | ??????????????????????????????????#?#" | | ?????????????????????########???????#" | | ?????????????????????# """#???#???#" | | ?????????????????????#"" """#???????## | | ?????????????????????#"" #???????## | | ?????????????????????#"" ###??????#" "X" | | ?????????????????????#"" "#?#??????#" """ | | ?????????????????????# ""#????????#" """""" | | ???????????#?????????#"" ""#???????##" ####### | | ????????? ??????????### ###???#??##"" #?????? | | ???????? #####????### ###?######"" #????#? | | ??????? """#####X# #"###""""""" ##?##?# | | ??????? """""" " "" ##???# | | ???????# "" """ " ##### | | ????????# " " | | ????????### | | ??????????### | | ????????????## | | ?????????????## | | ??????????????##" | | ???????????????#""" """""" | | ??????????????##" ######""" | | ??????????????#"" ""##????#####""" | | ?????????????##""" @ """##?????????##""" | | ?????????????#"" aa """##????##?????#"""" | | ?????????????# ""#????????????#"" | | ???????????#?#" ###?####?????#"""" | | ?????????????#" ## ####??? | | ?????????????#"" aa """" | | ?????????????## t aa | | ?????????#?#??# a %z | | ??????????????## % | | ???????????????# " "" | | ???????????????# c ""## ##""" " " | | ???????????????#" ""###?? #???##""" | | ???????????????#" """"##?#???#??????#" | | ???????????????#""" """#??#???????????? | | ???????????????## c ""##??????????????? | | ????????????????#"" """##???????????????? | | ??????????????#?##""" ##?????"??????????? | | ?????????????????##"""" ##?????????????????? | | ??????????????????### #??????#???????????? | | ??????????????#??#??##### ##??????????????????? | | #???????????????????????## ##???#?#????????????? | | ??????#??????????????##??# #?????#?????????????? | | ?????????#???????????????# #???????????#???????? | | ?????????????????????????# #???#?#?????????????? | | ???????#??????#####??????# #???????????????????? | +----------------------------------------------------+ Best States ------------- Heat Dissipation 25 Energy Generation 14 Energy Capacity 250 Matter Stores 300 Matter Capacity 300 Sight Range 16 Terrain Scan Range 16 Terrain Scan Density 10 Armor Coverage 150 Evasion (%) 50 Recoil Reduction 2 Item Schematics ----------------- None Robot Schematics ------------------ None Fabricated ------------ Nothing Alien Tech Used ----------------- None Achievements -------------- None Challenges ------------ None Game ------ Seed DirtyProtonWell Manual? 0 Play Time 00:14:37 Cumulative 48.3 hours Start 2024.08.31 @ 17:07:28 End 2024.08.31 @ 17:21:28 Sessions 1 Manual Loads 0 Difficulty Rogue Special Mode None Game No. 66 Rogue 66 Adventurer 0 Explorer 0 Win Type - Total 0 Types 0/0/0/0/0/0/0/0/0 Lore% 13 Gallery% 30 Achievement% 27 Wizard Run 0 Options --------- Layout 1 ASCII 0 Keyboard 0 Movement Arrows Keybinds 0 Fullscreen 1 Font 16/SmallcapsGlow Map View 50x40 Zoom Use 0% Tactical HUD 1 Map Filters NONE Filters NONE Steam SD RUN: 0f6200c0-b342-45e3-a93d-be567bbe9eb8